[Event "*** Titled Tuesday Blitz"]
[Site "Chess.com"]
[Date "2019.09.03"]
[Round "2"]
[White "AllStarShark"]
[Black "HouseOfDurin"]
[Result "1-0"]
[WhiteElo "2363"]
[BlackElo "1919"]
[TimeControl "180+2"]
[EndTime "15:25:23 PDT"]
[Termination "AllStarShark won by resignation"]

1. c4 {[%clk 0:03:01.9]} 1... c5 {[%clk 0:03:01]} 2. Nc3 {[%clk 0:03:01]} 2...
Nc6 {[%clk 0:03:02.5]} 3. Nf3 {[%clk 0:03:02]} 3... g6 {[%clk 0:03:04.1]} 4. e3
{[%clk 0:03:02.8]} 4... Bg7 {[%clk 0:03:05.5]} 5. d4 {[%clk 0:03:03.9]} 5...
cxd4 {[%clk 0:03:04.2]} 6. exd4 {[%clk 0:03:04.7]} 6... d6 {[%clk 0:03:05.5]} 7.
Be2 {[%clk 0:02:58.8]} 7... Nf6 {[%clk 0:03:06.6]} 8. O-O {[%clk 0:02:59.3]}
8... O-O {[%clk 0:03:08.1]} 9. d5 {[%clk 0:02:59.3]} 9... Ne5 {[%clk 0:03:05.1]}
10. Re1 {[%clk 0:02:53.3]} 10... Nxf3+ {[%clk 0:02:57]} 11. Bxf3 {[%clk
0:02:55.2]} 11... Rb8 {[%clk 0:02:58.2]} 12. Qd2 {[%clk 0:02:22.1]} 12... Re8
{[%clk 0:02:29.6]} 13. b3 {[%clk 0:02:18.5]} 13... a6 {[%clk 0:02:18.5]} 14. a4
{[%clk 0:02:18.1]} 14... Bd7 {[%clk 0:02:16.6]} 15. a5 {[%clk 0:01:48.6]} 15...
h6 {[%clk 0:02:06.6]} 16. Bb2 {[%clk 0:01:28.4]} 16... Bg4 {[%clk 0:02:06.7]}
17. Bxg4 {[%clk 0:01:23.1]} 17... Nxg4 {[%clk 0:02:08.6]} 18. Ne4 {[%clk
0:01:18.1]} 18... Bxb2 {[%clk 0:01:58.8]} 19. Qxb2 {[%clk 0:01:20]} 19... e5
{[%clk 0:01:35.3]} 20. dxe6 {[%clk 0:01:12.2]} 20... Rxe6 {[%clk 0:01:36.1]} 21.
h3 {[%clk 0:00:36.2]} 21... Ne5 {[%clk 0:01:35.7]} 22. Qd2 {[%clk 0:00:35.9]}
22... Qe7 {[%clk 0:01:33.4]} 23. Rad1 {[%clk 0:00:33.8]} 23... Rd8 {[%clk
0:00:50.1]} 24. Nc3 {[%clk 0:00:30.5]} 24... Kg7 {[%clk 0:00:24.4]} 25. Nd5
{[%clk 0:00:29.5]} 25... Qg5 {[%clk 0:00:25.3]} 26. f4 {[%clk 0:00:25.8]} 26...
Nf3+ {[%clk 0:00:24.8]} 27. Kh1 {[%clk 0:00:21.2]} 27... Nxd2 {[%clk 0:00:13.6]}
28. fxg5 {[%clk 0:00:19.4]} 28... Rxe1+ {[%clk 0:00:14.5]} 29. Rxe1 {[%clk
0:00:16.5]} 29... hxg5 {[%clk 0:00:15]} 30. Re3 {[%clk 0:00:12.6]} 30... Rd7
{[%clk 0:00:11.3]} 31. Kg1 {[%clk 0:00:11.9]} 31... f5 {[%clk 0:00:08.5]} 32.
Kf2 {[%clk 0:00:12]} 32... f4 {[%clk 0:00:09]} 33. Rd3 {[%clk 0:00:12.2]} 33...
Nb1 {[%clk 0:00:09.8]} 34. Nb6 {[%clk 0:00:11.2]} 34... Rd8 {[%clk 0:00:10.1]}
35. c5 {[%clk 0:00:11.6]} 35... d5 {[%clk 0:00:09.7]} 36. Rxd5 {[%clk
0:00:09.8]} 36... Rxd5 {[%clk 0:00:10.5]} 37. Nxd5 {[%clk 0:00:11.7]} 37... Nd2
{[%clk 0:00:11.7]} 38. b4 {[%clk 0:00:12]} 38... Nc4 {[%clk 0:00:09.1]} 39. Nb6
{[%clk 0:00:11]} 39... Na3 {[%clk 0:00:09.1]} 40. Nd5 {[%clk 0:00:08.6]} 40...
Kf7 {[%clk 0:00:08.7]} 41. Nb6 {[%clk 0:00:05.5]} 41... Nc2 {[%clk 0:00:09.2]}
42. Nd5 {[%clk 0:00:05.6]} 42... Ke6 {[%clk 0:00:10.5]} 43. Nc3 {[%clk
0:00:03.4]} 43... Nxb4 {[%clk 0:00:11]} 44. Ne4 {[%clk 0:00:04.9]} 44... Nd3+
{[%clk 0:00:09]} 45. Ke2 {[%clk 0:00:05.4]} 45... Ne5 {[%clk 0:00:06.8]} 46.
Nxg5+ {[%clk 0:00:06.5]} 46... Kf5 {[%clk 0:00:08.3]} 47. Nf3 {[%clk 0:00:06.5]}
47... Nc6 {[%clk 0:00:10]} 48. Kd3 {[%clk 0:00:07]} 48... Nxa5 {[%clk
0:00:11.1]} 49. Kd4 {[%clk 0:00:07.6]} 49... Nc6+ {[%clk 0:00:12.2]} 50. Kd5
{[%clk 0:00:08.8]} 50... g5 {[%clk 0:00:13.4]} 51. Kd6 {[%clk 0:00:07.2]} 51...
g4 {[%clk 0:00:13.5]} 52. hxg4+ {[%clk 0:00:07.9]} 52... Kxg4 {[%clk 0:00:15.4]}
53. Nd2 {[%clk 0:00:09.3]} 53... Kg3 {[%clk 0:00:15.5]} 54. Kc7 {[%clk
0:00:10.2]} 54... Na5 {[%clk 0:00:15.8]} 55. Kb6 {[%clk 0:00:10.9]} 55... Kxg2
{[%clk 0:00:13.4]} 56. Kxa5 {[%clk 0:00:11.3]} 56... f3 {[%clk 0:00:14.9]} 57.
Kb6 {[%clk 0:00:12.4]} 57... f2 {[%clk 0:00:15.9]} 58. Kxb7 {[%clk 0:00:13.6]}
58... a5 {[%clk 0:00:17.4]} 59. c6 {[%clk 0:00:14.6]} 59... a4 {[%clk
0:00:18.9]} 60. c7 {[%clk 0:00:16.1]} 60... a3 {[%clk 0:00:20.4]} 61. c8=Q
{[%clk 0:00:17.7]} 61... a2 {[%clk 0:00:21.8]} 62. Qg4+ {[%clk 0:00:18.9]} 62...
Kh1 {[%clk 0:00:22.4]} 63. Qh3+ {[%clk 0:00:19.3]} 63... Kg1 {[%clk 0:00:23.4]}
64. Qg3+ {[%clk 0:00:20.3]} 64... Kh1 {[%clk 0:00:24.5]} 65. Qa3 {[%clk
0:00:16.4]} 65... f1=Q {[%clk 0:00:18.7]} 66. Nxf1 {[%clk 0:00:15.8]} 66... a1=Q
{[%clk 0:00:18.5]} 67. Qxa1 {[%clk 0:00:16.7]} 67... Kg1 {[%clk 0:00:20.4]} 68.
Ne3+ {[%clk 0:00:17]} 1-0

[Event "*** Titled Tuesday Blitz"]
[Site "Chess.com"]
[Date "2019.09.03"]
[Round "2"]
[White "MathiasWomacka"]
[Black "KL31"]
[Result "0-1"]
[WhiteElo "2183"]
[BlackElo "2511"]
[TimeControl "180+2"]
[EndTime "15:25:25 PDT"]
[Termination "KL31 won by resignation"]

1. e4 {[%clk 0:02:56]} 1... e6 {[%clk 0:03:01.1]} 2. d4 {[%clk 0:02:56.4]} 2...
d5 {[%clk 0:03:02.4]} 3. Nd2 {[%clk 0:02:57.8]} 3... c5 {[%clk 0:03:03.1]} 4.
exd5 {[%clk 0:02:58.7]} 4... Qxd5 {[%clk 0:03:05]} 5. Ngf3 {[%clk 0:02:59.7]}
5... cxd4 {[%clk 0:03:06]} 6. Bc4 {[%clk 0:03:01]} 6... Qd6 {[%clk 0:03:07.4]}
7. O-O {[%clk 0:03:01.4]} 7... Nc6 {[%clk 0:03:08.5]} 8. Nb3 {[%clk 0:03:02.6]}
8... a6 {[%clk 0:03:09.9]} 9. Nbxd4 {[%clk 0:03:01.4]} 9... Nxd4 {[%clk
0:03:11.8]} 10. Nxd4 {[%clk 0:03:01.6]} 10... Qc7 {[%clk 0:03:13.1]} 11. Qe2
{[%clk 0:02:55.4]} 11... Bd6 {[%clk 0:03:14.4]} 12. Nf3 {[%clk 0:02:33.3]} 12...
Ne7 {[%clk 0:03:10.2]} 13. Bd3 {[%clk 0:02:31.4]} 13... Ng6 {[%clk 0:03:05.4]}
14. g3 {[%clk 0:02:25.3]} 14... O-O {[%clk 0:02:50.9]} 15. Ng5 {[%clk
0:02:25.8]} 15... Be7 {[%clk 0:02:04.4]} 16. Qh5 {[%clk 0:02:15.1]} 16... Bxg5
{[%clk 0:02:05.2]} 17. Bxg5 {[%clk 0:02:17]} 17... Qc5 {[%clk 0:01:52]} 18. Be2
{[%clk 0:01:46.9]} 18... Qxc2 {[%clk 0:01:33.3]} 19. Rac1 {[%clk 0:01:18.9]}
19... Qxb2 {[%clk 0:01:33.7]} 20. Rc7 {[%clk 0:01:17]} 20... Qe5 {[%clk
0:01:31]} 21. Rfc1 {[%clk 0:01:16.2]} 21... h6 {[%clk 0:01:11.7]} 22. Be3 {[%clk
0:01:16.9]} 22... Qxh5 {[%clk 0:01:09.9]} 23. Bxh5 {[%clk 0:01:18.8]} 23... Ne5
{[%clk 0:01:09]} 24. Bc5 {[%clk 0:00:59.5]} 24... Rd8 {[%clk 0:01:02]} 25. f4
{[%clk 0:01:00.4]} 25... Rd7 {[%clk 0:00:56.6]} 26. Bb6 {[%clk 0:00:37.2]} 26...
Rxc7 {[%clk 0:00:37.2]} 27. Rxc7 {[%clk 0:00:39.1]} 27... Nd7 {[%clk 0:00:38.1]}
28. Bd4 {[%clk 0:00:39.8]} 28... b6 {[%clk 0:00:26]} 29. Bf3 {[%clk 0:00:40.1]}
29... Rb8 {[%clk 0:00:27]} 30. h4 {[%clk 0:00:24.3]} 30... f6 {[%clk 0:00:28.2]}
31. h5 {[%clk 0:00:21.2]} 31... Kf8 {[%clk 0:00:29.1]} 32. Bc6 {[%clk
0:00:20.9]} 32... Ke7 {[%clk 0:00:19.6]} 33. Ra7 {[%clk 0:00:21.5]} 33... Kd6
{[%clk 0:00:19.1]} 34. Bxd7 {[%clk 0:00:19.5]} 34... Bxd7 {[%clk 0:00:21]} 35.
Rxa6 {[%clk 0:00:21.1]} 35... Kc6 {[%clk 0:00:19.3]} 36. Kf2 {[%clk 0:00:21.5]}
36... Rb7 {[%clk 0:00:19.2]} 37. Ke3 {[%clk 0:00:22.2]} 37... Kb5 {[%clk
0:00:20.7]} 38. Ra8 {[%clk 0:00:22]} 38... Bc6 {[%clk 0:00:21.7]} 39. a4+ {[%clk
0:00:22.9]} 39... Kb4 {[%clk 0:00:21.1]} 40. Rc8 {[%clk 0:00:23.7]} 40... Bxa4
{[%clk 0:00:20.3]} 41. Bc3+ {[%clk 0:00:22.1]} 41... Kb5 {[%clk 0:00:18.7]} 42.
Re8 {[%clk 0:00:20.7]} 42... Bb3 {[%clk 0:00:20]} 43. Kd4 {[%clk 0:00:19.4]}
43... Bd5 {[%clk 0:00:21]} 44. Rc8 {[%clk 0:00:19.1]} 44... Ka4 {[%clk
0:00:20.8]} 45. f5 {[%clk 0:00:19.8]} 45... b5 {[%clk 0:00:20.1]} 46. Kc5 {[%clk
0:00:17.5]} 46... b4 {[%clk 0:00:19.2]} 47. Ra8+ {[%clk 0:00:16.5]} 47... Kb3
{[%clk 0:00:20.2]} 48. Bd4 {[%clk 0:00:17.8]} 48... Kc2 {[%clk 0:00:20.7]} 49.
Rd8 {[%clk 0:00:15.7]} 49... b3 {[%clk 0:00:21.5]} 50. fxe6 {[%clk 0:00:15.6]}
50... Bxe6 {[%clk 0:00:22.5]} 51. Kd6 {[%clk 0:00:16.5]} 51... Bf7 {[%clk
0:00:22.3]} 52. Rc8+ {[%clk 0:00:16.7]} 52... Kd3 {[%clk 0:00:22.3]} 53. Bb2
{[%clk 0:00:16.9]} 53... Bxh5 {[%clk 0:00:22.2]} 54. Rc3+ {[%clk 0:00:16.9]}
54... Kd2 {[%clk 0:00:22.3]} 55. Kc6 {[%clk 0:00:18.5]} 55... Rb8 {[%clk
0:00:22.3]} 56. Kc7 {[%clk 0:00:19]} 56... Rb5 {[%clk 0:00:21.6]} 57. Kc6 {[%clk
0:00:20]} 57... Be8+ {[%clk 0:00:21.7]} 58. Kc7 {[%clk 0:00:20.3]} 58... h5
{[%clk 0:00:21.7]} 59. Rf3 {[%clk 0:00:16.5]} 59... Kc2 {[%clk 0:00:20.2]} 60.
Bd4 {[%clk 0:00:16]} 60... b2 {[%clk 0:00:20.8]} 61. Rf2+ {[%clk 0:00:16.4]}
61... Kb1 {[%clk 0:00:22.2]} 62. Kd8 {[%clk 0:00:16.6]} 62... Bg6 {[%clk
0:00:21.8]} 63. Ke7 {[%clk 0:00:17.2]} 63... Ka2 {[%clk 0:00:23]} 64. Kf8 {[%clk
0:00:17.5]} 64... Ka3 {[%clk 0:00:24.2]} 65. Bxb2+ {[%clk 0:00:17.6]} 65... Rxb2
{[%clk 0:00:26.1]} 66. Rxb2 {[%clk 0:00:18.3]} 66... Kxb2 {[%clk 0:00:28]} 67.
Kxg7 {[%clk 0:00:19.1]} 67... Bf5 {[%clk 0:00:29.3]} 68. Kxf6 {[%clk 0:00:20.1]}
68... Bg4 {[%clk 0:00:31.2]} 69. Ke5 {[%clk 0:00:20.3]} 69... Kc3 {[%clk
0:00:33.1]} 70. Ke4 {[%clk 0:00:21.4]} 70... Kd2 {[%clk 0:00:34.5]} 71. Kf4
{[%clk 0:00:22.1]} 71... Ke2 {[%clk 0:00:36]} 72. Kg5 {[%clk 0:00:22.9]} 72...
Kf3 {[%clk 0:00:37.9]} 73. Kh4 {[%clk 0:00:23.6]} 73... Kg2 {[%clk 0:00:39.1]}
0-1

[Event "*** Titled Tuesday Blitz"]
[Site "Chess.com"]
[Date "2019.09.03"]
[Round "2"]
[White "Alexander_Donchenko"]
[Black "HarryCun"]
[Result "1/2-1/2"]
[WhiteElo "2664"]
[BlackElo "2105"]
[TimeControl "180+2"]
[EndTime "15:25:47 PDT"]
[Termination "Game drawn by repetition"]

1. e4 {[%clk 0:03:01.9]} 1... c6 {[%clk 0:02:56.8]} 2. d4 {[%clk 0:03:02.5]}
2... d5 {[%clk 0:02:58.7]} 3. Nd2 {[%clk 0:03:03.2]} 3... dxe4 {[%clk
0:02:57.8]} 4. Nxe4 {[%clk 0:03:05.1]} 4... Bf5 {[%clk 0:02:58.9]} 5. Ng3 {[%clk
0:03:06.3]} 5... Bg6 {[%clk 0:02:59.9]} 6. h4 {[%clk 0:03:08]} 6... h6 {[%clk
0:03:00.9]} 7. Nf3 {[%clk 0:03:09.6]} 7... Nd7 {[%clk 0:03:00.1]} 8. h5 {[%clk
0:03:10.4]} 8... Bh7 {[%clk 0:03:01.1]} 9. Bd3 {[%clk 0:03:12.1]} 9... Bxd3
{[%clk 0:03:02.6]} 10. Qxd3 {[%clk 0:03:14]} 10... e6 {[%clk 0:03:04.2]} 11. Bd2
{[%clk 0:03:15.1]} 11... Ngf6 {[%clk 0:03:04.9]} 12. O-O-O {[%clk 0:03:16.2]}
12... Be7 {[%clk 0:03:06.5]} 13. Kb1 {[%clk 0:03:16.4]} 13... Qc7 {[%clk
0:03:08]} 14. Rhe1 {[%clk 0:03:14.5]} 14... O-O-O {[%clk 0:03:09.2]} 15. Nf5
{[%clk 0:03:12.5]} 15... Bf8 {[%clk 0:03:05.6]} 16. Ne3 {[%clk 0:03:10.5]} 16...
Kb8 {[%clk 0:03:03.8]} 17. g4 {[%clk 0:03:07.7]} 17... Ka8 {[%clk 0:03:02.4]}
18. Qe2 {[%clk 0:03:02.6]} 18... Bd6 {[%clk 0:02:59.6]} 19. c4 {[%clk
0:02:56.4]} 19... c5 {[%clk 0:03:00]} 20. d5 {[%clk 0:02:55.6]} 20... exd5
{[%clk 0:02:55.6]} 21. cxd5 {[%clk 0:02:56.1]} 21... Rhe8 {[%clk 0:02:55.8]} 22.
Bc3 {[%clk 0:02:57.1]} 22... Nxg4 {[%clk 0:02:45.9]} 23. Bxg7 {[%clk 0:02:56.8]}
23... Bf4 {[%clk 0:02:24.1]} 24. d6 {[%clk 0:02:46]} 24... Qa5 {[%clk
0:02:15.6]} 25. Bc3 {[%clk 0:02:36.4]} 25... Qa4 {[%clk 0:02:05.6]} 26. Qc4
{[%clk 0:02:19.4]} 26... Qxc4 {[%clk 0:01:52]} 27. Nxc4 {[%clk 0:02:21.3]} 27...
Nxf2 {[%clk 0:01:49.2]} 28. Rxe8 {[%clk 0:02:13.8]} 28... Rxe8 {[%clk
0:01:48.7]} 29. Rf1 {[%clk 0:02:15.7]} 29... Ne4 {[%clk 0:01:46.6]} 30. Bg7
{[%clk 0:01:53.5]} 30... b5 {[%clk 0:01:38.5]} 31. Na5 {[%clk 0:01:48.2]} 31...
Nxd6 {[%clk 0:01:33.2]} 32. Rd1 {[%clk 0:01:34.1]} 32... Nb6 {[%clk 0:01:12.4]}
33. Bxh6 {[%clk 0:01:27.9]} 33... Bg3 {[%clk 0:00:46.3]} 34. Bg7 {[%clk
0:01:14.5]} 34... Nf5 {[%clk 0:00:34.3]} 35. Be5 {[%clk 0:00:57.2]} 35... Bxe5
{[%clk 0:00:28.3]} 36. Nxe5 {[%clk 0:00:58.1]} 36... Nd4 {[%clk 0:00:25.7]} 37.
Nxf7 {[%clk 0:00:55.9]} 37... Na4 {[%clk 0:00:19.5]} 38. h6 {[%clk 0:00:55.3]}
38... Re2 {[%clk 0:00:18.7]} 39. Rxd4 {[%clk 0:00:23.9]} 39... cxd4 {[%clk
0:00:18.2]} 40. h7 {[%clk 0:00:25.1]} 40... Rxb2+ {[%clk 0:00:18]} 41. Kc1
{[%clk 0:00:26.1]} 41... Rh2 {[%clk 0:00:18.5]} 42. h8=Q+ {[%clk 0:00:27]} 42...
Rxh8 {[%clk 0:00:20.1]} 43. Nxh8 {[%clk 0:00:28.7]} 43... Nc3 {[%clk 0:00:21.1]}
44. Kb2 {[%clk 0:00:27.5]} 44... b4 {[%clk 0:00:20.5]} 45. Nf7 {[%clk
0:00:22.5]} 45... d3 {[%clk 0:00:21.8]} 46. Nc4 {[%clk 0:00:17.1]} 46... a5
{[%clk 0:00:21.7]} 47. Nfe5 {[%clk 0:00:16.9]} 47... Nxa2 {[%clk 0:00:20.5]} 48.
Kxa2 {[%clk 0:00:15.4]} 48... a4 {[%clk 0:00:21.9]} 49. Nxd3 {[%clk 0:00:15.5]}
49... b3+ {[%clk 0:00:22.9]} 50. Ka3 {[%clk 0:00:14.7]} 50... Kb7 {[%clk
0:00:24.1]} 51. Ndb2 {[%clk 0:00:15.1]} 51... Ka6 {[%clk 0:00:20.5]} 52. Kb4
{[%clk 0:00:15.5]} 52... a3 {[%clk 0:00:20.8]} 53. Nxa3 {[%clk 0:00:16.6]} 53...
Kb6 {[%clk 0:00:22.1]} 54. Nac4+ {[%clk 0:00:17.7]} 54... Kc6 {[%clk 0:00:24]}
55. Ka4 {[%clk 0:00:14.8]} 55... Kd5 {[%clk 0:00:25.9]} 56. Kb5 {[%clk 0:00:16]}
56... Kd4 {[%clk 0:00:27.3]} 57. Kc6 {[%clk 0:00:16]} 57... Kc3 {[%clk
0:00:29.2]} 58. Kc5 {[%clk 0:00:17.1]} 58... Kc2 {[%clk 0:00:30.5]} 59. Kd4
{[%clk 0:00:17.8]} 59... Kc1 {[%clk 0:00:29]} 60. Kc3 {[%clk 0:00:18.2]} 60...
Kb1 {[%clk 0:00:29.1]} 61. Ne5 {[%clk 0:00:15.6]} 61... Kc1 {[%clk 0:00:29.1]}
62. Ned3+ {[%clk 0:00:16.6]} 62... Kb1 {[%clk 0:00:31]} 63. Nf4 {[%clk
0:00:15.7]} 63... Kc1 {[%clk 0:00:31.9]} 64. Ne2+ {[%clk 0:00:16.2]} 64... Kb1
{[%clk 0:00:33.4]} 65. Nf4 {[%clk 0:00:12.1]} 65... Kc1 {[%clk 0:00:33.8]} 66.
Nd5 {[%clk 0:00:12.5]} 66... Kb1 {[%clk 0:00:35]} 67. Nb6 {[%clk 0:00:13.7]}
67... Kc1 {[%clk 0:00:36.2]} 68. N6c4 {[%clk 0:00:14]} 68... Kb1 {[%clk
0:00:37.4]} 69. Kd2 {[%clk 0:00:15.6]} 69... Ka2 {[%clk 0:00:37.8]} 70. Kc1
{[%clk 0:00:17]} 70... Ka1 {[%clk 0:00:38.8]} 71. Nd2 {[%clk 0:00:16.6]} 71...
Ka2 {[%clk 0:00:39.6]} 72. Nb1 {[%clk 0:00:16.6]} 72... Ka1 {[%clk 0:00:40.1]}
73. Nd3 {[%clk 0:00:05.3]} 73... Ka2 {[%clk 0:00:39.5]} 74. Nc3+ {[%clk
0:00:05.8]} 74... Ka1 {[%clk 0:00:40.5]} 75. Nb1 {[%clk 0:00:06.2]} 75... Ka2
{[%clk 0:00:41.1]} 76. Nb4+ {[%clk 0:00:05.6]} 76... Ka1 {[%clk 0:00:41.4]} 77.
Nd3 {[%clk 0:00:06.4]} 1/2-1/2

[Event "*** Titled Tuesday Blitz"]
[Site "Chess.com"]
[Date "2019.09.03"]
[Round "2"]
[White "DeviatkinAndrey"]
[Black "imdvb6307"]
[Result "1/2-1/2"]
[WhiteElo "2693"]
[BlackElo "2411"]
[TimeControl "180+2"]
[EndTime "15:25:53 PDT"]
[Termination "Game drawn by agreement"]

1. d4 {[%clk 0:03:01.9]} 1... d5 {[%clk 0:02:58.9]} 2. Nf3 {[%clk 0:03:01.9]}
2... Nf6 {[%clk 0:02:59.4]} 3. e3 {[%clk 0:03:01.2]} 3... Bg4 {[%clk 0:02:59.6]}
4. c4 {[%clk 0:03:01.6]} 4... c6 {[%clk 0:03:00.2]} 5. Qb3 {[%clk 0:03:00.8]}
5... Qc7 {[%clk 0:02:36.4]} 6. Ne5 {[%clk 0:03:01.7]} 6... Bf5 {[%clk 0:02:30]}
7. cxd5 {[%clk 0:02:58.7]} 7... cxd5 {[%clk 0:01:56.1]} 8. Nc3 {[%clk
0:02:59.2]} 8... e6 {[%clk 0:01:56.7]} 9. Bb5+ {[%clk 0:02:59.8]} 9... Nfd7
{[%clk 0:01:47.1]} 10. g4 {[%clk 0:02:38.1]} 10... Bg6 {[%clk 0:01:38.7]} 11.
Bd2 {[%clk 0:02:17.6]} 11... Nc6 {[%clk 0:00:35.8]} 12. Rc1 {[%clk 0:01:49.9]}
12... Ndxe5 {[%clk 0:00:35.9]} 13. dxe5 {[%clk 0:01:49]} 13... Qd7 {[%clk
0:00:21.4]} 14. Na4 {[%clk 0:01:17.3]} 14... Rc8 {[%clk 0:00:15.9]} 15. f3
{[%clk 0:00:42]} 15... Be7 {[%clk 0:00:15.3]} 16. Nc5 {[%clk 0:00:39.1]} 16...
Bxc5 {[%clk 0:00:15.8]} 17. Rxc5 {[%clk 0:00:38.9]} 17... O-O {[%clk 0:00:14.6]}
18. Qa4 {[%clk 0:00:38.2]} 18... a6 {[%clk 0:00:14.5]} 19. Bxc6 {[%clk
0:00:39.2]} 19... Rxc6 {[%clk 0:00:15.1]} 20. Rxc6 {[%clk 0:00:40.4]} 20... Qxc6
{[%clk 0:00:16.4]} 21. Qxc6 {[%clk 0:00:41.1]} 21... bxc6 {[%clk 0:00:17.6]} 22.
Ke2 {[%clk 0:00:35.7]} 22... c5 {[%clk 0:00:18.7]} 23. b3 {[%clk 0:00:36.1]}
23... c4 {[%clk 0:00:19.5]} 24. bxc4 {[%clk 0:00:36.9]} 24... Rc8 {[%clk
0:00:17.9]} 25. cxd5 {[%clk 0:00:34.7]} 25... exd5 {[%clk 0:00:18.9]} 26. Rc1
{[%clk 0:00:16.9]} 26... Rxc1 {[%clk 0:00:18.9]} 27. Bxc1 {[%clk 0:00:18.8]}
27... Bb1 {[%clk 0:00:20]} 28. a3 {[%clk 0:00:17.8]} 28... Kf8 {[%clk
0:00:20.5]} 29. Kd2 {[%clk 0:00:12.5]} 29... Ke7 {[%clk 0:00:19.9]} 30. Kc3
{[%clk 0:00:13.4]} 30... Ba2 {[%clk 0:00:19.3]} 31. Kd4 {[%clk 0:00:11]} 31...
Ke6 {[%clk 0:00:20.3]} 32. h4 {[%clk 0:00:10.9]} 32... g6 {[%clk 0:00:21.1]} 33.
Bd2 {[%clk 0:00:11]} 33... Bc4 {[%clk 0:00:21.8]} 34. e4 {[%clk 0:00:12]} 34...
Bb3 {[%clk 0:00:21.4]} 35. exd5+ {[%clk 0:00:12.7]} 35... Bxd5 {[%clk
0:00:22.2]} 36. f4 {[%clk 0:00:13]} 36... Bf3 {[%clk 0:00:23.4]} 37. g5 {[%clk
0:00:11.9]} 37... Be2 {[%clk 0:00:23.4]} 38. Bb4 {[%clk 0:00:11.7]} 38... Kd7
{[%clk 0:00:23.5]} 39. Kc5 {[%clk 0:00:12]} 39... Bd3 {[%clk 0:00:24]} 40. Kd5
{[%clk 0:00:11.5]} 40... Bf5 {[%clk 0:00:21.5]} 41. Bf8 {[%clk 0:00:12.4]} 41...
Bg4 {[%clk 0:00:21.1]} 42. Kc5 {[%clk 0:00:12]} 42... Be2 {[%clk 0:00:20.7]} 43.
Bg7 {[%clk 0:00:12.2]} 43... Bf1 {[%clk 0:00:21]} 44. Bf6 {[%clk 0:00:12.8]}
44... Be2 {[%clk 0:00:21.7]} 45. Kb6 {[%clk 0:00:09.6]} 45... Bd3 {[%clk
0:00:21.8]} 46. a4 {[%clk 0:00:10.9]} 46... Be2 {[%clk 0:00:22.4]} 47. a5 {[%clk
0:00:12.4]} 47... Bd3 {[%clk 0:00:23.4]} 48. Kc5 {[%clk 0:00:12.6]} 48... Be2
{[%clk 0:00:24.5]} 49. Kd5 {[%clk 0:00:13.1]} 49... Bf3+ {[%clk 0:00:25.8]} 50.
Kd4 {[%clk 0:00:13.9]} 50... Be2 {[%clk 0:00:26.8]} 51. Ke3 {[%clk 0:00:09.7]}
51... Bd1 {[%clk 0:00:27.9]} 52. Ke4 {[%clk 0:00:08.9]} 52... Bc2+ {[%clk
0:00:29.1]} 53. Kd5 {[%clk 0:00:10.2]} 53... Bb3+ {[%clk 0:00:29.7]} 54. Kc5
{[%clk 0:00:10.5]} 54... Bd1 {[%clk 0:00:31.3]} 55. Kd4 {[%clk 0:00:10.9]} 55...
Bb3 {[%clk 0:00:29.4]} 56. Bg7 {[%clk 0:00:11.9]} 56... Bd1 {[%clk 0:00:29.6]}
57. Ke4 {[%clk 0:00:10.9]} 57... Bc2+ {[%clk 0:00:30.5]} 58. Kd4 {[%clk
0:00:11.2]} 58... Bd1 {[%clk 0:00:31.5]} 59. Ke3 {[%clk 0:00:11.6]} 59... Bb3
{[%clk 0:00:32.1]} 60. h5 {[%clk 0:00:11.8]} 60... Bc2 {[%clk 0:00:30.7]} 61. h6
{[%clk 0:00:11.2]} 61... Bb3 {[%clk 0:00:31.4]} 62. Kd4 {[%clk 0:00:12.4]} 62...
Bc2 {[%clk 0:00:31.8]} 63. Kd5 {[%clk 0:00:12.4]} 63... Bb3+ {[%clk 0:00:32.5]}
64. Kd4 {[%clk 0:00:12.8]} 64... Bc2 {[%clk 0:00:32]} 65. Kc4 {[%clk 0:00:13.5]}
65... Bd1 {[%clk 0:00:32.1]} 66. Bf6 {[%clk 0:00:12.3]} 66... Be2+ {[%clk
0:00:31.8]} 67. Kc5 {[%clk 0:00:13.5]} 67... Bf1 {[%clk 0:00:31.9]} 68. Kb6
{[%clk 0:00:13]} 68... Bd3 {[%clk 0:00:32.4]} 69. e6+ {[%clk 0:00:12.4]} 69...
fxe6 {[%clk 0:00:30.7]} 70. Kc5 {[%clk 0:00:13]} 70... Ke8 {[%clk 0:00:30.8]}
71. Kd6 {[%clk 0:00:11.7]} 71... Kf7 {[%clk 0:00:31.9]} 72. Ke5 {[%clk
0:00:12.5]} 72... Bf1 {[%clk 0:00:32.4]} 73. Bd8 {[%clk 0:00:13.7]} 73... Bd3
{[%clk 0:00:33]} 74. Bb6 {[%clk 0:00:14.9]} 74... Bf5 {[%clk 0:00:34]} 75. Bd4
{[%clk 0:00:15.6]} 75... Ke7 {[%clk 0:00:35]} 76. Bc5+ {[%clk 0:00:15.9]} 76...
Kf7 {[%clk 0:00:36.3]} 77. Bb4 {[%clk 0:00:16.8]} 77... Bd3 {[%clk 0:00:37]} 78.
Kd6 {[%clk 0:00:16.4]} 78... Bf5 {[%clk 0:00:37.5]} 1/2-1/2